bitfinex/quotes_SOLUSD_20250714
["timestamp","ask_amount","ask_price","bid_price","bid_amount"]
[1752490988156,0.06,167.38,167.37,16.78468397]
[1752490988379,0.06,167.38,167.37,107.07468397]
[1752490988556,0.06,167.38,167.37,112.80775781]
[1752490990285,0.06,167.38,167.37,112.21027917]
[1752490993497,0.06,167.38,167.37,107.07468397]
[1752490994696,0.06,167.38,167.37,112.21027917]
[1752490997991,0.06,167.38,167.37,136.70254421]
[1752490998194,0.06,167.38,167.37,130.13027917]
[1752490998875,0.06,167.38,167.37,136.10506557]
[1752490999076,0.06,167.38,167.37,130.13027917]
[1752491000997,0.06,167.38,167.37,136.10506557]
[1752491001874,0.1,167.43,167.4,16.78468397]
[1752491002088,9.35007397,167.43,167.42,21.92027917]
[1752491002284,9.35007397,167.43,167.42,22.61027917]
[1752491002473,0.1,167.43,167.42,22.61027917]
[1752491002884,0.1,167.43,167.42,112.15027917]
[1752491005007,0.1,167.43,167.42,138.15027917]
[1752491006196,0.1,167.43,167.42,156.07027917]
[1752491006503,0.1,167.43,167.42,136.0432812]
[1752491007208,0.06,167.45,167.44,150.08468397]
[1752491007507,0.06,167.45,167.44,185.80027917]
[1752491007907,0.06,167.45,167.44,186.50027917]
[1752491008211,0.06,167.45,167.44,197.60816295]
[1752491008407,0.06,167.45,167.44,199.13096295]
[1752491008908,0.06,167.45,167.44,351.55966295]
[1752491009311,0.06,167.45,167.44,357.53066295]
[1752491009501,0.06,167.45,167.44,351.55966295]
[1752491010514,0.06,167.45,167.44,357.53066295]
[1752491010686,0.06,167.45,167.44,351.55966295]
[1752491010888,0.06,167.45,167.44,357.53066295]
[1752491011381,0.1,167.48,167.47,60.70468397]
[1752491011594,0.1,167.48,167.47,96.42027917]
[1752491011919,0.1,167.48,167.47,97.12027917]
[1752491012300,0.1,167.48,167.47,103.09149789]
[1752491012501,0.1,167.5,167.48,106.06468397]
[1752491012697,0.1,167.5,167.48,111.90027917]
[1752491013808,0.1,167.5,167.48,129.82027917]
[1752491014004,0.1,167.5,167.48,131.15108397]
[1752491014205,0.1,167.5,167.48,166.84667917]
[1752491018118,0.1,167.5,167.48,106.06468397]
[1752491018310,0.1,167.5,167.48,136.62468397]
[1752491018514,9.35007397,167.5,167.48,106.06468397]
[1752491018727,0.72,167.49,167.48,106.06468397]
[1752491019128,9.97007397,167.49,167.48,106.06468397]
[1752491019312,9.97007397,167.49,167.48,136.62468397]
[1752491020916,9.31007397,167.49,167.48,136.62468397]
[1752491021223,0.06,167.49,167.48,155.24468397]
[1752491021429,0.06,167.49,167.48,154.54468397]
[1752491021936,0.06,167.49,167.48,123.98468397]
[1752491022109,0.72,167.49,167.48,154.54468397]
[1752491022304,0.72,167.49,167.48,123.98468397]
[1752491022505,0.72,167.49,167.48,154.54468397]
[1752491022931,9.97007397,167.49,167.48,154.54468397]
[1752491023116,9.97007397,167.49,167.48,123.98468397]
[1752491023311,9.97007397,167.49,167.48,136.62468397]
[1752491023628,9.31007397,167.49,167.48,136.62468397]
[1752491023925,9.97007397,167.49,167.48,136.62468397]
[1752491024434,9.31007397,167.49,167.48,136.62468397]
[1752491025031,9.31007397,167.49,167.48,137.32468397]
[1752491025533,0.06,167.49,167.48,137.32468397]
[1752491025718,0.06,167.49,167.48,160.38027917]
[1752491025917,0.06,167.49,167.48,186.38027917]
[1752491026420,0.06,167.49,167.48,149.98468397]
[1752491026608,0.06,167.49,167.48,180.54468397]
[1752491027510,0.06,167.49,167.48,181.24468397]
[1752491027726,0.06,167.49,167.48,180.54468397]
[1752491028226,0.06,167.49,167.48,181.24468397]
[1752491028809,0.06,167.49,167.48,149.98468397]
[1752491029120,9.31007397,167.49,167.48,154.54468397]
[1752491029321,9.31007397,167.49,167.48,155.24468397]
[1752491030626,9.31007397,167.49,167.48,154.54468397]
[1752491030829,0.06,167.49,167.48,154.54468397]
[1752491031011,9.31007397,167.49,167.48,154.54468397]
[1752491031435,0.06,167.49,167.48,154.54468397]
[1752491031612,9.31007397,167.49,167.48,154.54468397]
[1752491031932,9.97007397,167.49,167.48,106.06468397]
[1752491032321,9.25007397,167.46,167.45,89.28]
[1752491032638,9.25007397,167.46,167.45,106.06468397]
[1752491032639,9.91007397,167.46,167.45,106.06468397]
[1752491032843,9.91007397,167.46,167.45,119.84]
[1752491033536,9.91007397,167.46,167.45,89.28]
[1752491033738,9.91007397,167.46,167.45,119.84]
[1752491038654,9.91007397,167.46,167.45,30.56]
[1752491039555,9.91007397,167.46,167.44,89.31]
[1752491039746,0.72,167.45,167.44,119.87]
[1752491039958,9.97007397,167.45,167.44,119.87]
[1752491040348,9.97007397,167.45,167.44,30.59]
[1752491041244,9.97007397,167.45,167.44,0.03]
[1752491042736,9.25007397,167.45,167.44,0.03]
[1752491043740,9.97007397,167.45,167.44,0.03]
[1752491047773,9.25007397,167.45,167.44,0.03]
[1752491054281,9.97007397,167.45,167.44,0.03]
[1752491054484,9.25007397,167.45,167.44,0.03]
[1752491056987,9.97007397,167.45,167.44,0.03]
[1752491059394,9.25007397,167.45,167.44,0.03]
[1752491060391,9.25007397,167.45,167.44,17.52468397]
[1752491061793,9.25007397,167.45,167.44,111.94027917]
[1752491062386,9.25007397,167.46,167.44,111.94027917]
[1752491062578,9.25007397,167.46,167.45,36.4055952]
[1752491064194,9.25007397,167.46,167.45,142.47027917]
[1752491065181,9.25007397,167.47,167.45,142.47027917]
[1752491065381,9.25007397,167.46,167.45,136.62468397]
[1752491065590,9.25007397,167.46,167.45,141.76027917]
[1752491065904,9.25007397,167.47,167.45,142.47027917]
[1752491066105,9.25007397,167.48,167.47,16.78468397]
[1752491066295,9.25007397,167.48,167.47,48.05468397]
[1752491068789,9.25007397,167.48,167.47,137.33468397]
[1752491069804,9.94007397,167.48,167.47,119.84]
[1752491070031,9.25007397,167.48,167.47,119.84]
[1752491073417,9.31007397,167.48,167.47,119.84]
[1752491074123,9.31007397,167.48,167.47,120.53]
[1752491074598,9.31007397,167.48,167.47,119.84]
[1752491076496,10.00007397,167.48,167.47,119.84]
[1752491077717,9.31007397,167.48,167.47,119.84]
[1752491081323,10.00007397,167.48,167.47,89.28]
[1752491081525,10.00007397,167.48,167.47,119.84]
[1752491082225,9.25007397,167.45,167.44,0.03]
[1752491082728,9.94007397,167.45,167.44,0.03]
[1752491082936,9.25007397,167.41,167.4,89.28]
[1752491083227,9.25007397,167.41,167.38,16.78468397]
[1752491083228,9.25007397,167.39,167.38,16.78468397]
[1752491083437,9.25007397,167.39,167.38,136.62468397]
[1752491091317,9.25007397,167.39,167.38,119.84]
[1752491092731,9.25007397,167.39,167.38,89.28]
[1752491093037,9.25007397,167.39,167.38,111.89027917]
[1752491093238,9.25007397,167.4,167.39,16.78468397]
[1752491093539,9.25007397,167.4,167.39,106.75468397]
[1752491093726,9.25007397,167.41,167.39,111.89027917]
[1752491093926,9.25007397,167.41,167.4,0.69]
[1752491094325,9.25007397,167.43,167.41,16.78468397]
[1752491094538,9.25007397,167.44,167.42,22.61027917]
[1752491094722,9.25007397,167.44,167.43,5.8255952]
[1752491095444,0.06,167.44,167.43,5.8255952]
[1752491095742,9.31007397,167.44,167.43,5.8255952]
[1752491097136,0.06,167.44,167.43,5.8255952]
[1752491097337,9.31007397,167.44,167.43,5.8255952]
[1752491097527,9.31007397,167.44,167.43,0.69]
[1752491098329,9.31007397,167.44,167.43,89.97]
[1752491099040,9.31007397,167.44,167.43,95.1055952]
[1752491099242,0.06,167.44,167.43,111.89027917]
[1752491099442,0.06,167.44,167.43,118.11337917]
[1752491099818,9.31007397,167.48,167.44,16.78468397]
[1752491100049,9.31007397,167.48,167.47,21.92027917]
[1752491100235,0.06,167.48,167.47,111.89027917]
[1752491100438,9.31007397,167.48,167.47,111.89027917]
[1752491100626,0.06,167.48,167.47,111.89027917]
[1752491101334,9.31007397,167.48,167.47,111.89027917]
[1752491102017,0.06,167.48,167.47,111.89027917]
[1752491102346,9.31007397,167.48,167.47,111.89027917]
[1752491102928,0.06,167.48,167.47,111.89027917]
[1752491103128,9.31007397,167.48,167.47,111.89027917]
[1752491104248,9.31007397,167.48,167.47,106.06468397]
[1752491105848,9.31007397,167.48,167.47,106.75468397]
[1752491107526,9.31007397,167.48,167.47,106.06468397]
[1752491112032,10.03007397,167.48,167.47,89.28]
[1752491112341,9.31007397,167.48,167.47,89.28]
[1752491113349,9.31007397,167.48,167.47,89.97]
[1752491113651,9.31007397,167.48,167.47,106.75468397]
[1752491117330,9.31007397,167.48,167.47,106.06468397]
[1752491121553,9.31007397,167.48,167.47,106.75468397]
[1752491122353,0.06,167.48,167.47,106.75468397]
[1752491122537,9.31007397,167.48,167.47,111.89027917]
[1752491123353,9.31007397,167.48,167.47,106.75468397]
[1752491123555,0.06,167.48,167.47,106.75468397]
[1752491123860,9.31007397,167.48,167.47,106.75468397]
[1752491127075,0.06,167.48,167.47,106.75468397]
[1752491127448,9.31007397,167.48,167.47,106.75468397]
[1752491127643,0.06,167.48,167.47,106.75468397]
[1752491127966,9.31007397,167.48,167.47,106.75468397]
[1752491129060,0.06,167.48,167.47,106.75468397]
[1752491129263,9.31007397,167.48,167.47,106.75468397]
[1752491131190,9.31007397,167.48,167.47,124.67468397]
[1752491131468,9.31007397,167.48,167.47,106.75468397]
[1752491132072,9.31007397,167.48,167.44,0.03]
[1752491132378,9.25007397,167.45,167.44,0.03]
[1752491133975,9.95007397,167.45,167.44,0.03]
[1752491135357,9.25007397,167.45,167.44,0.03]
[1752491135770,9.95007397,167.45,167.44,0.03]
[1752491137378,9.50007397,167.45,167.44,0.03]
[1752491138283,9.25007397,167.45,167.44,0.03]
[1752491138961,9.50007397,167.45,167.44,0.03]
[1752491139164,9.25007397,167.42,167.41,89.28]
[1752491139371,9.25007397,167.4,167.39,89.28]
[1752491144883,9.25007397,167.4,167.39,89.94]
[1752491148203,9.25007397,167.4,167.39,106.72468397]
[1752491149292,9.25007397,167.4,167.39,89.28]
[1752491150601,5.10193297,167.4,167.39,89.28]
[1752491150987,5.10193297,167.39,167.38,0.03]
[1752491151194,5.80193297,167.39,167.38,0.03]
[1752491153986,5.10193297,167.39,167.38,0.03]
[1752491154982,5.10193297,167.39,167.38,0.69]
[1752491155182,5.10193297,167.39,167.38,0.03]
[1752491157302,5.35193297,167.39,167.38,0.03]
[1752491158610,5.10193297,167.39,167.38,0.03]
[1752491159823,5.10193297,167.39,167.38,0.73]
[1752491160195,5.10193297,167.4,167.38,0.73]
[1752491160513,5.10193297,167.39,167.38,106.79468397]
[1752491162017,5.10193297,167.39,167.38,89.31]
[1752491163404,5.78193297,167.39,167.38,0.03]
[1752491165428,5.10193297,167.39,167.38,0.03]
[1752491166131,5.10193297,167.39,167.38,0.73]
[1752491166332,5.10193297,167.39,167.38,0.03]
[1752491168117,5.78193297,167.39,167.38,0.03]
[1752491173845,5.10193297,167.38,167.37,0.03]
[1752491174144,5.78193297,167.38,167.37,0.03]
[1752491175949,5.10193297,167.38,167.37,0.73]
[1752491176242,5.10193297,167.38,167.37,0.03]
[1752491179728,5.10193297,167.38,167.37,0.73]
[1752491180845,5.10193297,167.38,167.37,0.03]
[1752491180846,5.78193297,167.38,167.37,0.03]
[1752491183635,5.10193297,167.38,167.37,0.03]
[1752491184046,5.10193297,167.38,167.37,0.73]
[1752491184756,5.10193297,167.38,167.37,0.03]
[1752491185352,5.78193297,167.38,167.36,0.46043171]
[1752491185643,5.78193297,167.37,167.33,0.03]
[1752491185845,5.10193297,167.34,167.33,0.03]
[1752491187252,5.78193297,167.34,167.33,0.03]
[1752491188846,7.34093297,167.34,167.33,0.03]
[1752491192847,24.12561694,167.34,167.33,0.03]
[1752491195260,34.12561694,167.34,167.32,0.03]
[1752491195554,15.78193297,167.33,167.32,0.03]
[1752491197467,32.56661694,167.33,167.32,0.03]
[1752491199679,15.10193297,167.32,167.31,0.03]
[1752491199979,5.78193297,167.32,167.31,0.03]
[1752491200152,15.78193297,167.32,167.31,0.03]
[1752491200655,32.56661694,167.32,167.31,0.03]
[1752491200866,5.10193297,167.28,167.27,0.2]
[1752491201288,5.78193297,167.28,167.27,0.2]
[1752491202477,5.10193297,167.28,167.27,0.2]
[1752491203372,5.78193297,167.28,167.27,0.2]
[1752491204200,5.10193297,167.28,167.27,0.2]
[1752491205900,5.78193297,167.28,167.27,0.2]
[1752491207230,22.56661694,167.28,167.27,0.2]
[1752491207919,32.56661694,167.28,167.27,0.2]
[1752491208493,22.56661694,167.28,167.27,0.2]
[1752491208803,32.56661694,167.28,167.27,0.2]
[1752491210004,37.29054975,167.28,167.27,0.2]
[1752491211017,21.88661694,167.27,167.26,0.03]
[1752491211215,32.56661694,167.27,167.26,0.03]
[1752491212411,22.56661694,167.27,167.26,0.03]
[1752491212718,32.56661694,167.27,167.26,0.03]
[1752491213117,38.49295492,167.27,167.26,0.03]
[1752491217504,5.10193297,167.27,167.26,0.03]
[1752491217702,5.81193297,167.27,167.26,0.03]
[1752491218512,31.88661694,167.25,167.24,0.03]
[1752491218819,31.88661694,167.24,167.23,0.2]
[1752491219021,38.33295492,167.24,167.23,0.1]
[1752491219822,38.01941694,167.22,167.2,0.2]
[1752491220229,44.46575492,167.22,167.2,0.2]
[1752491221612,28.33295492,167.22,167.2,0.2]
[1752491221828,21.88661694,167.22,167.2,0.2]
[1752491222207,5.10193297,167.22,167.2,0.2]
[1752491222618,5.62193297,167.22,167.2,0.2]
[1752491222816,15.62193297,167.22,167.2,0.2]
[1752491223025,34.04941694,167.22,167.2,0.2]
[1752491223417,39.97575492,167.22,167.2,0.2]
[1752491224406,31.88661694,167.21,167.2,0.2]
[1752491224606,38.33295492,167.21,167.2,0.2]
[1752491225026,32.40661694,167.21,167.2,0.2]
[1752491225530,22.40661694,167.21,167.2,0.2]
[1752491225712,32.40661694,167.21,167.2,0.2]
[1752491226304,22.40661694,167.21,167.2,0.2]
[1752491226508,32.40661694,167.21,167.2,0.2]
[1752491228437,22.40661694,167.21,167.2,0.2]
[1752491228730,32.40661694,167.21,167.2,0.2]
[1752491231212,21.88661694,167.21,167.2,0.2]
[1752491232318,21.88661694,167.21,167.2,0.88]
[1752491232732,21.88661694,167.21,167.2,0.2]
[1752491232924,22.40661694,167.21,167.2,0.2]
[1752491234435,32.40661694,167.21,167.2,0.2]
[1752491237125,21.88661694,167.21,167.2,0.2]
[1752491237641,21.88661694,167.21,167.2,0.88]
[1752491239136,5.10193297,167.21,167.2,0.88]
[1752491243836,21.88661694,167.21,167.2,0.2]
[1752491244044,32.40661694,167.21,167.2,0.2]
[1752491246034,22.40661694,167.21,167.2,0.38]
[1752491246234,32.40661694,167.21,167.2,0.38]
[1752491246464,31.88661694,167.21,167.2,0.38]
[1752491246939,32.40661694,167.21,167.2,0.38]
[1752491248541,22.40661694,167.21,167.2,0.38]
[1752491248740,32.40661694,167.21,167.2,0.38]
[1752491250947,32.46661694,167.21,167.2,0.38]
[1752491251462,21.94661694,167.21,167.2,0.38]
[1752491251630,31.94661694,167.21,167.2,0.38]
[1752491251830,21.94661694,167.21,167.2,0.38]
[1752491252028,21.94661694,167.21,167.2,1.07]
[1752491252239,21.94661694,167.21,167.2,0.89]
[1752491253736,5.16193297,167.21,167.2,0.89]
[1752491259745,5.16193297,167.21,167.2,0.2]
[1752491259746,21.94661694,167.21,167.2,0.2]
[1752491263866,22.46661694,167.21,167.2,0.2]
[1752491264046,26.48828614,167.21,167.2,0.2]
[1752491264240,22.46661694,167.21,167.2,0.2]
[1752491264463,28.01316184,167.21,167.2,0.2]
[1752491264672,43.93949982,167.21,167.2,0.2]
[1752491265158,48.40764642,167.21,167.2,0.2]
[1752491265348,21.88661694,167.14,167.13,0.03]
[1752491265666,40.64486322,167.14,167.13,0.03]
[1752491265866,42.81226322,167.14,167.13,0.03]
[1752491266649,47.27633354,167.14,167.13,0.03]
[1752491267057,42.81226322,167.14,167.13,0.03]
[1752491267668,42.29226322,167.14,167.13,0.03]
[1752491267966,42.81226322,167.14,167.13,0.03]
[1752491270559,45.35226322,167.14,167.13,0.03]
[1752491271758,24.42661694,167.14,167.13,0.03]
[1752491272574,21.88661694,167.14,167.13,0.03]
[1752491273958,22.40661694,167.14,167.13,0.03]
[1752491274157,31.88661694,167.14,167.13,0.03]
[1752491274777,32.40661694,167.14,167.13,0.03]
[1752491278370,21.88661694,167.14,167.13,0.03]
[1752491282483,21.88661694,167.14,167.13,0.69]
[1752491284070,21.88661694,167.14,167.13,0.03]
[1752491288783,31.88661694,167.14,167.13,0.03]
[1752491289677,21.88661694,167.14,167.13,0.03]
[1752491289983,31.88661694,167.14,167.13,0.03]
[1752491291393,21.88661694,167.14,167.13,0.03]
[1752491291567,31.88661694,167.14,167.13,0.03]
[1752491292497,32.40661694,167.14,167.13,0.03]
[1752491292679,31.88661694,167.14,167.13,0.03]
[1752491294997,32.40661694,167.14,167.13,0.03]
[1752491296891,21.88661694,167.14,167.13,0.03]
[1752491299098,21.88661694,167.14,167.13,0.69]
[1752491300800,5.10193297,167.14,167.13,0.69]
[1752491301511,5.10193297,167.14,167.11,6.2518]
[1752491301810,5.10193297,167.12,167.11,6.2518]
[1752491303106,5.10193297,167.12,167.11,5.7518]
[1752491303486,5.10193297,167.12,167.11,6.4118]
[1752491304116,21.88661694,167.12,167.11,0.66]
[1752491304497,16.78468397,167.11,167.06,1.4412]
[1752491304685,5.10193297,167.07,167.06,1.4412]
[1752491305487,5.10193297,167.07,167.06,1.00258063]
[1752491306113,5.10193297,167.07,167.06,7.62048063]
[1752491306410,16.78468397,167.18,167.06,7.62048063]
[1752491306798,17.45468397,167.18,167.07,0.66]
[1752491309088,16.78468397,167.16,167.06,7.28048063]
[1752491311005,16.78468397,167.18,167.07,0.4]
[1752491311199,4.72380015,167.17,167.07,0.4]
[1752491311694,16.78468397,167.18,167.07,0.4]
[1752491312221,17.48468397,167.18,167.07,0.4]
[1752491313516,17.48468397,167.18,167.08,6.1609]
[1752491313907,17.48468397,167.18,167.09,0.4]
[1752491316524,0.06,167.16,167.09,0.4]
[1752491318004,0.76,167.16,167.09,0.4]
[1752491320436,0.76,167.16,167.08,6.5609]
[1752491321337,0.76,167.16,167.09,0.4]
[1752491321708,0.76,167.16,167.08,6.0609]
[1752491321930,0.06,167.16,167.08,6.0609]
[1752491322307,0.76,167.16,167.08,6.0609]
[1752491324027,16.78468397,167.15,167.08,6.0609]
[1752491324233,0.7,167.14,167.08,6.0609]
[1752491325322,16.78468397,167.15,167.08,6.0609]
[1752491325522,0.76,167.16,167.08,6.0609]
[1752491325740,0.06,167.16,167.08,6.0609]
[1752491325909,0.06,167.16,167.08,95.6609]
[1752491326626,0.06,167.16,167.1,5.1355952]
[1752491326835,0.06,167.16,167.11,1.5351]
[1752491332125,0.06,167.16,167.11,91.1351]
[1752491335653,0.06,167.16,167.11,96.2706952]
[1752491335858,0.06,167.16,167.12,6.0083]
[1752491336031,0.06,167.16,167.12,95.6083]
[1752491336352,0.06,167.16,167.12,100.7438952]
[1752491336654,0.06,167.16,167.12,95.6083]
[1752491337646,0.06,167.16,167.12,100.7438952]
[1752491338735,0.06,167.16,167.12,106.7128952]
[1752491339048,0.71,167.22,167.12,95.6083]
[1752491340427,0.71,167.22,167.12,100.7438952]
[1752491341053,0.71,167.22,167.12,95.6083]
[1752491341727,16.78468397,167.21,167.12,95.6083]
[1752491341936,0.71,167.2,167.12,95.6083]
[1752491342435,0.71,167.2,167.08,112.45408397]
[1752491343728,0.71,167.2,167.08,117.58967917]
[1752491344655,0.71,167.2,167.08,112.45408397]
[1752491347457,16.78468397,167.19,167.08,95.6694]
[1752491347647,0.71,167.18,167.08,95.6694]
[1752491351961,0.71,167.2,167.09,16.78468397]
[1752491352866,0.71,167.2,167.09,106.38468397]
[1752491353556,17.49468397,167.22,167.11,1.5036]
[1752491353743,17.49468397,167.22,167.12,6.075]
[1752491353945,0.71,167.22,167.12,95.675]
[1752491354643,16.78468397,167.25,167.12,100.8105952]
[1752491354841,16.78468397,167.23,167.12,100.8105952]
[1752491355066,17.49468397,167.23,167.12,95.675]
[1752491355870,0.71,167.22,167.12,95.675]
[1752491359466,16.78468397,167.23,167.12,100.8105952]
[1752491359671,17.49468397,167.23,167.12,100.8405952]
[1752491359860,17.49468397,167.25,167.13,5.1355952]
[1752491360042,16.84468397,167.23,167.13,5.1355952]
[1752491361260,0.06,167.23,167.13,5.1355952]
[1752491361461,0.77,167.23,167.13,5.1355952]
[1752491361663,0.77,167.23,167.13,94.7355952]
[1752491362986,0.77,167.23,167.13,89.6]
[1752491363153,0.77,167.23,167.13,94.7355952]
[1752491363354,0.77,167.23,167.13,89.6]
[1752491363553,0.77,167.23,167.13,94.7355952]
[1752491364973,0.77,167.23,167.13,89.6]
[1752491365783,0.77,167.23,167.13,94.7355952]
[1752491367249,0.77,167.23,167.13,89.6]
[1752491367983,0.77,167.23,167.13,94.7355952]
[1752491368983,0.77,167.23,167.13,89.6]
[1752491369178,0.77,167.23,167.13,94.7355952]
[1752491369592,0.77,167.23,167.13,89.6]
[1752491371268,0.06,167.23,167.13,94.7355952]
[1752491371477,16.84468397,167.23,167.13,94.7355952]
[1752491372081,0.06,167.23,167.13,26.0]
[1752491372288,16.84468397,167.23,167.14,13.3536952]
[1752491372475,16.84468397,167.23,167.14,8.2181]
[1752491372882,0.72,167.23,167.14,8.2181]
[1752491375596,0.72,167.23,167.14,13.3536952]
[1752491376494,0.72,167.23,167.14,8.2181]
[1752491378099,16.78468397,167.21,167.14,8.2181]
[1752491378396,0.66,167.2,167.14,8.2181]
[1752491383976,16.78468397,167.19,167.14,8.2181]
[1752491384181,0.66,167.18,167.14,8.2181]
[1752491385000,0.66,167.17,167.14,8.2181]
[1752491385984,0.66,167.19,167.14,8.2181]
[1752491386283,0.66,167.18,167.14,8.2181]
[1752491386508,0.66,167.22,167.14,8.2181]
[1752491390399,0.06,167.23,167.14,8.2181]
[1752491390587,0.06,167.23,167.14,13.3536952]
[1752491391104,0.72,167.23,167.14,8.2181]
[1752491403306,0.06,167.23,167.2,11.5376952]
[1752491403507,0.06,167.23,167.21,1.5517]
[1752491403824,0.06,167.23,167.22,5.1355952]
[1752491404122,0.06,167.26,167.23,16.78468397]
[1752491404294,0.06,167.26,167.24,1.5773]
[1752491404699,0.06,167.26,167.22,6.6565]
[1752491406524,0.66,167.25,167.2,1.5773]
[1752491407309,0.06,167.26,167.2,1.5773]
[1752491407512,0.72,167.26,167.2,1.5773]
[1752491409033,0.72,167.26,167.18,6.6565]
[1752491409903,16.78468397,167.25,167.18,6.6565]
[1752491410134,0.66,167.24,167.18,6.6565]
[1752491410928,0.66,167.24,167.16,1.5121]
[1752491412515,0.66,167.24,167.14,95.9263]
[1752491412720,16.78468397,167.22,167.14,6.3263]
[1752491412910,0.66,167.21,167.14,6.3263]
[1752491413110,16.78468397,167.2,167.14,0.03]
[1752491413310,0.66,167.19,167.14,0.03]
[1752491414726,16.78468397,167.2,167.14,0.03]
[1752491415111,0.66,167.2,167.14,0.03]
[1752491418733,0.66,167.2,167.13,0.03]
[1752491418920,17.44468397,167.2,167.13,0.03]
[1752491419118,0.66,167.19,167.13,0.03]
[1752491419335,17.44468397,167.2,167.13,0.03]
[1752491421539,0.66,167.19,167.13,0.03]
[1752491439158,0.66,167.2,167.15,6.1485]
[1752491439351,0.66,167.19,167.14,1.5644]
[1752491440056,0.06,167.23,167.14,91.1644]
[1752491440057,0.66,167.21,167.14,91.1644]
[1752491440250,0.66,167.21,167.14,96.2999952]
[1752491440456,0.06,167.23,167.16,16.78468397]
[1752491440782,0.66,167.22,167.16,89.6]
[1752491442041,0.06,167.23,167.16,94.7355952]
[1752491442340,0.06,167.23,167.17,16.78468397]
[1752491442545,0.06,167.23,167.18,6.6905952]
[1752491442958,0.06,167.23,167.19,21.92027917]
[1752491443258,0.06,167.23,167.19,23.11268397]
[1752491443652,0.06,167.23,167.19,28.24827917]
[1752491443962,0.06,167.23,167.2,5.1355952]
[1752491444141,0.06,167.23,167.21,5.1355952]
[1752491444344,0.06,167.23,167.22,50.63778397]
[1752491444647,0.06,167.23,167.22,7.8531]
[1752491446940,0.06,167.23,167.22,29.77337917]
[1752491447560,0.06,167.23,167.22,24.63778397]
[1752491448265,0.06,167.23,167.22,55.77337917]
[1752491448767,0.06,167.23,167.22,50.63778397]
[1752491448954,0.06,167.23,167.22,55.77337917]
[1752491449367,0.06,167.23,167.22,140.23778397]
[1752491449961,0.06,167.23,167.22,145.37337917]
[1752491450164,0.06,167.26,167.25,42.78468397]
[1752491450547,0.06,167.26,167.25,47.92027917]
[1752491450746,0.06,167.26,167.25,42.78468397]
[1752491450954,0.06,167.26,167.25,65.88027917]
[1752491451162,0.06,167.26,167.25,47.92027917]
[1752491452270,0.06,167.36,167.3,26.0]
[1752491452457,0.06,167.36,167.32,54.71047917]
[1752491453754,0.06,167.36,167.33,16.78468397]
[1752491454076,0.06,167.36,167.34,5.73318095]
[1752491454255,0.06,167.36,167.35,5.1355952]
[1752491454574,0.06,167.36,167.33,16.78468397]
[1752491454771,0.06,167.36,167.33,21.92027917]
[1752491455076,0.06,167.36,167.34,5.1355952]
[1752491455375,0.06,167.36,167.35,5.1355952]
[1752491455966,0.06,167.36,167.33,17.38230543]
[1752491456274,0.06,167.36,167.34,5.1355952]
[1752491456488,0.06,167.36,167.33,21.92027917]
[1752491456771,0.72,167.36,167.32,6.7902]
[1752491456978,0.66,167.35,167.28,6.5383]
[1752491457145,0.66,167.35,167.29,21.92027917]
[1752491457350,0.66,167.35,167.3,5.1355952]
[1752491457558,0.66,167.35,167.29,16.78468397]
[1752491457559,0.66,167.35,167.29,21.92027917]
[1752491457758,0.66,167.35,167.3,5.1355952]
[1752491457966,0.66,167.35,167.29,16.78468397]
[1752491458163,0.66,167.35,167.3,5.1355952]
[1752491458365,0.66,167.35,167.29,16.78468397]
[1752491458875,0.66,167.35,167.29,21.92027917]
[1752491459054,0.66,167.35,167.29,16.78468397]
[1752491459256,0.66,167.35,167.29,21.92027917]
[1752491460384,0.66,167.35,167.28,6.5383]